bitfinex/quotes_SOLUSD_20250522
["timestamp","ask_amount","ask_price","bid_price","bid_amount"]
[1747899116133,26.0,176.64,176.59,14.2885829]
[1747899116292,26.0,176.64,176.54,33.98]
[1747899116293,159.1199829,176.67,176.62,14.2885829]
[1747899116723,26.0,176.63,176.61,14.2885829]
[1747899116922,39.94,176.71,176.55,14.2885829]
[1747899116923,1.6264,176.71,176.62,14.2885829]
[1747899117137,6.6248,176.72,176.67,14.2885829]
[1747899117421,26.0,176.69,176.68,14.2885829]
[1747899117917,26.0,176.69,176.59,92.54964886]
[1747899118122,6.6248,176.72,176.68,14.2885829]
[1747899118416,26.0,176.71,176.68,14.2885829]
[1747899118623,26.0,176.71,176.67,14.2885829]
[1747899119239,19.54373096,176.74,176.68,14.2885829]
[1747899119523,19.54373096,176.74,176.64,33.98]
[1747899119524,33.08039333,176.74,176.69,14.2885829]
[1747899119698,33.08039333,176.74,176.68,14.2885829]
[1747899119896,14.2885829,176.73,176.68,14.2885829]
[1747899120119,14.2885829,176.72,176.67,14.2885829]
[1747899120299,26.0,176.7,176.68,14.2885829]
[1747899121200,7.9002,176.75,176.69,14.2885829]
[1747899121423,26.0,176.72,176.7,14.2885829]
[1747899122322,40.2885829,176.72,176.64,1.5437]
[1747899122526,26.0,176.7,176.69,14.2885829]
[1747899122724,26.0,176.71,176.69,14.2885829]
[1747899123213,14.2885829,176.74,176.69,14.2885829]
[1747899123214,26.0,176.72,176.69,14.2885829]
[1747899123799,26.0,176.72,176.7,14.2885829]
[1747899124213,155.69181043,176.77,176.64,1.5437]
[1747899124214,26.0,176.77,176.71,14.2885829]
[1747899124501,14.2885829,176.78,176.73,14.2885829]
[1747899124700,1.5649,176.79,176.73,14.2885829]
[1747899124907,26.0,176.75,176.73,14.2885829]
[1747899125126,26.0,176.77,176.73,14.2885829]
[1747899125451,1.5649,176.79,176.75,14.2885829]
[1747899125799,26.0,176.77,176.75,14.2885829]
[1747899126428,1.5649,176.79,176.75,14.2885829]
[1747899126910,26.0,176.77,176.74,14.2885829]
[1747899127301,26.0,176.77,176.75,14.2885829]
[1747899127809,40.2885829,176.77,176.67,6.5527]
[1747899128013,14.2885829,176.76,176.71,14.2885829]
[1747899128211,40.2885829,176.77,176.72,14.2885829]
[1747899128412,26.0,176.75,176.72,14.2885829]
[1747899129837,26.0,176.75,176.73,14.2885829]
[1747899130421,26.0,176.77,176.74,14.2885829]
[1747899130634,26.0,176.77,176.75,14.2885829]
[1747899132760,26.0,176.79,176.75,14.2885829]
[1747899132926,26.0,176.81,176.78,14.2885829]
[1747899133748,26.0,176.79,176.73,73.8]
[1747899133949,26.0,176.79,176.76,14.2885829]
[1747899134145,26.0,176.79,176.73,73.8]
[1747899134338,14.2885829,176.81,176.75,14.2885829]
[1747899134654,40.2885829,176.8,176.75,14.2885829]
[1747899135038,14.2885829,176.79,176.74,14.2885829]
[1747899135747,40.2885829,176.8,176.75,14.2885829]
[1747899136142,14.2885829,176.79,176.74,14.2885829]
[1747899136344,26.0,176.77,176.72,14.2885829]
[1747899136544,26.0,176.77,176.73,14.2885829]
[1747899136857,26.0,176.76,176.73,14.2885829]
[1747899138843,14.2885829,176.77,176.72,14.2885829]
[1747899139866,19.80085991,176.76,176.71,14.2885829]
[1747899140040,19.80085991,176.76,176.72,14.2885829]
[1747899142963,19.80085991,176.76,176.73,14.2885829]
[1747899144337,14.14347137,176.76,176.73,14.2885829]
[1747899145362,19.80085991,176.76,176.72,14.2885829]
[1747899145670,19.80085991,176.76,176.73,14.2885829]
[1747899147472,26.0,176.74,176.73,14.2885829]
[1747899148150,26.0,176.74,176.72,14.2885829]
[1747899149141,26.0,176.74,176.73,14.2885829]
[1747899149464,26.0,176.76,176.73,14.2885829]
[1747899149659,26.0,176.74,176.71,5.65895499]
[1747899149862,26.0,176.74,176.73,14.2885829]
[1747899150775,31.65751054,176.76,176.73,14.2885829]
[1747899151082,31.65751054,176.76,176.75,14.2885829]
[1747899152066,5.65715549,176.77,176.75,14.2885829]
[1747899152373,5.65578869,176.81,176.76,14.2885829]
[1747899152574,34.08384333,176.81,176.76,14.2885829]
[1747899152776,26.0,176.78,176.77,14.2885829]
[1747899152980,26.0,176.78,176.72,5.65866564]
[1747899153273,26.0,176.78,176.77,14.2885829]
[1747899153766,31.65612501,176.8,176.77,14.2885829]
[1747899154071,31.65612501,176.8,176.78,14.2885829]
[1747899154646,60.0849794,176.8,176.7,6.4338]
[1747899154874,26.0,176.75,176.72,14.2885829]
[1747899155167,26.0,176.75,176.73,14.2885829]
[1747899155872,5.65802874,176.74,176.73,14.2885829]
[1747899159065,31.65776115,176.75,176.73,14.2885829]
[1747899159378,31.65776115,176.75,176.74,14.2885829]
[1747899160454,31.65776115,176.75,176.73,14.2885829]
[1747899161577,31.65776115,176.75,176.74,14.2885829]
[1747899163773,31.65776115,176.75,176.69,5.65958086]
[1747899163963,31.65776115,176.75,176.73,14.2885829]
[1747899164353,31.65776115,176.75,176.74,14.2885829]
[1747899168385,31.65776115,176.75,176.69,5.65962986]
[1747899168586,31.65776115,176.75,176.74,14.2885829]
[1747899169293,6.5678,176.83,176.74,14.2885829]
[1747899169491,6.5678,176.83,176.69,24.45144029]
[1747899169492,6.5678,176.83,176.81,14.2885829]
[1747899170376,6.5678,176.83,176.8,14.2885829]
[1747899170578,5.65546883,176.82,176.8,14.2885829]
[1747899173394,26.0,176.79,176.75,5.65770862]
[1747899173593,26.0,176.79,176.78,14.2885829]
[1747899176179,31.65616749,176.8,176.74,39.8]
[1747899176908,26.0,176.78,176.77,14.2885829]
[1747899177490,26.0,176.78,176.74,39.8]
[1747899177674,26.0,176.78,176.77,14.2885829]
[1747899179092,5.65645837,176.79,176.77,14.2885829]
[1747899179313,5.65645837,176.79,176.78,14.2885829]
[1747899180299,5.65645837,176.79,176.74,39.8]
[1747899180599,26.0,176.78,176.76,14.2885829]
[1747899180775,26.0,176.78,176.77,14.2885829]
[1747899181775,31.65621048,176.8,176.74,5.65800826]
[1747899182114,5.65589414,176.81,176.79,14.2885829]
[1747899182296,5.65589414,176.81,176.74,5.65800826]
[1747899182297,5.65589414,176.81,176.8,14.2885829]
[1747899182506,26.0,176.8,176.79,14.2885829]
[1747899182692,26.0,176.8,176.78,14.2885829]
[1747899183210,26.0,176.79,176.71,39.59897126]
[1747899183517,26.0,176.79,176.76,14.2885829]
[1747899184219,5.6567485,176.78,176.76,14.2885829]
[1747899185509,5.6567485,176.78,176.77,14.2885829]
[1747899185705,31.65646955,176.79,176.77,14.2885829]
[1747899185886,31.65646955,176.79,176.71,39.5988861]
[1747899186084,31.65646955,176.79,176.76,14.2885829]
[1747899186299,31.65646955,176.79,176.71,88.6588861]
[1747899186499,45.79754087,176.79,176.71,83.0]
[1747899186841,45.79754087,176.79,176.76,14.2885829]
[1747899187189,45.79754087,176.79,176.7,122.59929523]
[1747899187393,14.2885829,176.78,176.69,39.8]
[1747899187581,14.2885829,176.78,176.72,14.2885829]
[1747899187781,45.79754087,176.79,176.75,14.2885829]
[1747899188191,60.08612377,176.79,176.74,14.2885829]
[1747899189321,31.65646955,176.79,176.76,14.2885829]
[1747899189790,31.65646955,176.79,176.74,14.2885829]
[1747899189989,60.08612377,176.79,176.74,14.2885829]
[1747899191426,45.79754087,176.79,176.75,14.2885829]
[1747899191601,45.79754087,176.79,176.76,14.2885829]
[1747899191602,31.65646955,176.79,176.76,14.2885829]
[1747899192092,31.65646955,176.79,176.77,14.2885829]
[1747899192290,5.65619212,176.8,176.78,14.2885829]
[1747899192525,5.65546883,176.82,176.79,14.2885829]
[1747899192726,26.0,176.79,176.73,33.94]
[1747899193033,19.79414092,176.82,176.73,33.94]
[1747899193333,31.65642853,176.79,176.78,14.2885829]
[1747899193531,26.0,176.8,176.78,14.2885829]
[1747899193709,26.0,176.8,176.79,14.2885829]
[1747899195411,31.65610859,176.8,176.79,14.2885829]
[1747899198610,26.0,176.8,176.79,14.2885829]
[1747899198810,31.65610859,176.8,176.79,14.2885829]
[1747899199009,26.0,176.82,176.79,14.2885829]
[1747899199208,26.0,176.82,176.81,14.2885829]
[1747899199526,19.79027168,176.86,176.81,14.2885829]
[1747899199721,26.0,176.83,176.78,39.59649181]
[1747899200444,26.0,176.83,176.78,33.94]
[1747899200606,26.0,176.83,176.76,73.66]
[1747899200936,40.2885829,176.83,176.76,33.94]
[1747899201108,40.2885829,176.83,176.78,14.2885829]
[1747899201311,26.0,176.81,176.78,14.2885829]
[1747899201527,5.65610859,176.8,176.78,14.2885829]
[1747899202846,26.0,176.77,176.71,83.0]
[1747899203014,26.0,176.75,176.73,14.2885829]
[1747899203702,5.65802874,176.74,176.73,14.2885829]
[1747899206535,26.0,176.75,176.73,14.2885829]
[1747899206721,26.0,176.75,176.74,14.2885829]
[1747899209236,26.0,176.77,176.74,14.2885829]
[1747899209439,5.65698373,176.78,176.76,14.2885829]
[1747899209638,5.65698373,176.78,176.77,14.2885829]
[1747899209939,5.65514901,176.83,176.77,14.2885829]
[1747899210242,5.65514901,176.83,176.81,14.2885829]
[1747899210617,26.0,176.81,176.8,14.2885829]
[1747899211130,19.79302154,176.83,176.73,33.94]
[1747899211131,14.2885829,176.82,176.73,33.94]
[1747899211532,14.2885829,176.82,176.77,14.2885829]
[1747899211734,5.65578869,176.81,176.77,14.2885829]
[1747899211934,19.79526043,176.81,176.77,14.2885829]
[1747899212742,60.08384333,176.81,176.76,14.2885829]
[1747899212945,60.08384333,176.81,176.71,33.94]
[1747899213118,14.2885829,176.8,176.75,14.2885829]
[1747899213325,34.08384333,176.81,176.75,14.2885829]
[1747899214143,14.2885829,176.78,176.73,14.2885829]
[1747899214337,14.2885829,176.78,176.72,14.2885829]
[1747899215741,19.79526043,176.81,176.74,14.2885829]
[1747899216046,28.42805464,176.81,176.76,14.2885829]
[1747899217939,34.08384333,176.81,176.76,14.2885829]
[1747899218939,14.2885829,176.8,176.74,14.2885829]
[1747899219446,19.79526043,176.81,176.75,14.2885829]
[1747899219646,19.79526043,176.81,176.76,14.2885829]
[1747899219826,34.08384333,176.81,176.76,14.2885829]
[1747899220033,14.13947174,176.81,176.79,14.2885829]
[1747899220232,5.65514901,176.83,176.79,14.2885829]
[1747899220624,19.79302154,176.83,176.79,14.2885829]
[1747899221029,19.79302154,176.83,176.78,14.2885829]
[1747899222347,19.79302154,176.83,176.79,14.2885829]
[1747899222546,19.79302154,176.83,176.78,14.2885829]
[1747899223725,34.08160444,176.83,176.77,14.2885829]
[1747899224048,19.79302154,176.83,176.78,14.2885829]
[1747899224625,19.79302154,176.83,176.76,26.0]
[1747899224843,19.79302154,176.83,176.78,14.2885829]
[1747899225222,19.79302154,176.83,176.79,14.2885829]
[1747899225445,5.65514901,176.83,176.8,14.2885829]
[1747899226037,5.65514901,176.83,176.81,14.2885829]
[1747899229228,5.65514901,176.83,176.82,14.2885829]
[1747899230053,14.1360159,176.86,176.82,14.2885829]
[1747899230252,5.65387007,176.87,176.84,14.2885829]
[1747899232165,19.78854525,176.87,176.83,14.2885829]
[1747899235261,14.2885829,176.86,176.81,26.0]
[1747899235457,14.2885829,176.86,176.81,40.2885829]
[1747899235960,19.79078314,176.85,176.81,40.2885829]
[1747899236851,19.79078314,176.85,176.82,14.2885829]
[1747899237051,19.79078314,176.85,176.81,40.2885829]
[1747899237848,19.79078314,176.85,176.82,14.2885829]
[1747899238049,14.13627367,176.85,176.82,14.2885829]
[1747899240273,5.65387007,176.87,176.83,14.2885829]
[1747899240760,19.78854525,176.87,176.83,14.2885829]
[1747899241469,19.78854525,176.87,176.84,14.2885829]
[1747899241964,5.65387007,176.87,176.86,14.2885829]
[1747899242466,14.13269546,176.9,176.86,14.2885829]
[1747899243072,14.13269546,176.9,176.85,14.2885829]
[1747899243255,28.42127836,176.9,176.85,14.2885829]
[1747899243642,14.13269546,176.9,176.86,14.2885829]
[1747899244142,28.42127836,176.9,176.85,14.2885829]
[1747899244553,34.0741896,176.9,176.85,14.2885829]
[1747899245071,19.7856067,176.9,176.87,14.2885829]
[1747899245257,19.7856067,176.9,176.86,14.2885829]
[1747899247273,19.7856067,176.9,176.87,14.2885829]
[1747899248252,5.65227221,176.92,176.89,14.2885829]
[1747899248568,5.65131393,176.95,176.91,14.2885829]
[1747899248867,34.06818165,176.95,176.89,14.2885829]
[1747899249044,14.2885829,176.91,176.79,90.7354]
[1747899249246,14.2885829,176.91,176.86,14.2885829]
[1747899249442,14.2885829,176.92,176.86,14.2885829]
[1747899249845,18.79181043,176.94,176.86,14.2885829]
[1747899250049,14.2885829,176.92,176.87,14.2885829]
[1747899250670,5.65259171,176.91,176.87,14.2885829]
[1747899251075,5.65259171,176.91,176.88,14.2885829]
[1747899251251,5.65259171,176.91,176.9,14.2885829]
[1747899251677,14.12963074,176.94,176.9,14.2885829]
[1747899251982,14.12963074,176.94,176.91,14.2885829]
[1747899252882,14.12963074,176.94,176.9,14.2885829]
[1747899253262,5.65131393,176.95,176.93,14.2885829]
[1747899254169,5.65131393,176.95,176.94,14.2885829]
[1747899254770,19.77464122,177.0,176.94,14.2885829]
[1747899254969,19.77464122,177.0,176.92,26.0]
[1747899255278,34.06322412,177.0,176.95,14.2885829]
[1747899256169,14.2885829,176.99,176.94,14.2885829]
[1747899256366,14.2885829,176.98,176.93,14.2885829]
[1747899256683,19.7762459,176.98,176.94,14.2885829]
[1747899257379,34.0648288,176.98,176.86,94.70246909]
[1747899257579,14.2885829,176.96,176.9,14.2885829]
[1747899258287,14.2885829,176.95,176.89,26.0]
[1747899258592,14.2885829,176.93,176.88,14.2885829]
[1747899258884,14.2885829,176.94,176.88,14.2885829]
[1747899259083,5.65195274,176.93,176.88,14.2885829]
[1747899259257,5.65195274,176.93,176.89,40.2885829]
[1747899259991,14.2885829,176.92,176.89,26.0]
[1747899260363,34.07041751,176.93,176.89,26.0]
[1747899262492,14.2885829,176.92,176.87,14.2885829]
[1747899262690,14.2885829,176.91,176.86,26.0]
[1747899262873,14.2885829,176.88,176.82,14.2885829]
[1747899263073,14.2885829,176.88,176.83,40.2885829]
[1747899263277,18.79181043,176.91,176.83,40.2885829]
[1747899263479,14.2885829,176.89,176.84,14.2885829]
[1747899263881,14.2885829,176.89,176.77,299.3885829]
[1747899263882,14.2885829,176.89,176.77,290.75701944]
[1747899264081,19.78742649,176.88,176.84,14.2885829]
[1747899264587,34.07600939,176.88,176.83,40.2885829]
[1747899264789,14.2885829,176.87,176.82,26.0]
[1747899264974,14.2885829,176.86,176.81,14.2885829]
[1747899265174,14.2885829,176.84,176.79,14.2885829]
[1747899265397,14.2885829,176.84,176.8,26.0]
[1747899265572,14.2885829,176.85,176.8,40.2885829]
[1747899265772,14.2885829,176.85,176.8,14.2885829]
[1747899266175,19.79190228,176.84,176.8,40.2885829]
[1747899267589,19.79190228,176.84,176.8,26.0]
[1747899267796,19.79190228,176.84,176.8,40.2885829]
[1747899268181,19.79190228,176.84,176.81,14.2885829]
[1747899269789,14.13707306,176.84,176.8,40.2885829]
[1747899270694,34.08048518,176.84,176.8,26.0]
[1747899270870,34.08048518,176.84,176.78,40.2885829]
[1747899271075,34.08048518,176.84,176.79,14.2885829]
[1747899271268,34.08048518,176.84,176.77,39.58]
[1747899271490,34.08048518,176.84,176.78,14.2885829]
[1747899272672,34.08048518,176.84,176.79,14.2885829]
[1747899274794,19.79190228,176.84,176.81,14.2885829]
[1747899275097,19.79190228,176.84,176.79,14.2885829]
[1747899276278,14.2885829,176.83,176.76,26.0]
[1747899276479,34.08048518,176.84,176.78,14.2885829]
[1747899276696,19.79414092,176.82,176.77,14.2885829]
[1747899276873,14.2885829,176.81,176.76,14.2885829]
[1747899277079,14.2885829,176.8,176.75,14.2885829]
[1747899277281,14.2885829,176.81,176.75,14.2885829]
[1747899277591,14.2885829,176.81,176.76,14.2885829]
[1747899277789,14.2885829,176.8,176.75,40.2885829]
[1747899278698,19.79749985,176.79,176.75,40.2885829]
[1747899279198,19.79749985,176.79,176.76,14.2885829]
[1747899280199,5.65642853,176.79,176.75,26.0]
[1747899280399,14.45346303,176.91,176.8,26.0]
[1747899280400,5.65387007,176.87,176.8,26.0]
[1747899280583,5.65387007,176.87,176.86,14.2885829]
[1747899281579,5.65323082,176.89,176.86,14.2885829]
[1747899281790,5.65323082,176.89,176.88,14.2885829]
[1747899282298,5.65227221,176.92,176.88,14.2885829]
[1747899282507,14.13019693,176.93,176.9,14.2885829]
[1747899283079,5.65163332,176.94,176.92,14.2885829]
[1747899284104,19.77878052,176.96,176.93,14.2885829]
[1747899284317,19.77878052,176.96,176.94,14.2885829]
[1747899284612,19.77878052,176.96,176.91,14.2885829]
[1747899284797,34.06736342,176.96,176.91,14.2885829]
[1747899285482,19.77878052,176.96,176.92,14.2885829]
[1747899288621,34.06736342,176.96,176.91,14.2885829]
[1747899289111,34.06736342,176.96,176.9,26.0]
[1747899289315,19.77878052,176.96,176.9,40.2885829]
[1747899289485,14.2885829,176.95,176.9,40.2885829]
[1747899289801,34.06736342,176.96,176.91,14.2885829]
[1747899291614,34.06736342,176.96,176.9,26.0]
[1747899291796,34.06736342,176.96,176.91,14.2885829]
[1747899295692,19.77878052,176.96,176.93,14.2885829]
[1747899296509,19.77878052,176.96,176.94,14.2885829]
[1747899296696,14.12778595,176.96,176.94,14.2885829]
[1747899297012,5.65067525,176.97,176.93,26.0]
[1747899297192,19.77736338,176.97,176.94,14.2885829]
[1747899297913,5.65067525,176.97,176.95,14.2885829]
[1747899298913,19.77512853,176.99,176.95,14.2885829]
[1747899300501,34.06371143,176.99,176.94,14.2885829]
[1747899301097,19.77512853,176.99,176.95,14.2885829]
[1747899301296,5.65003672,176.99,176.96,14.2885829]
[1747899302715,5.65003672,176.99,176.97,14.2885829]
[1747899302928,5.65003672,176.99,176.98,14.2885829]
[1747899303220,34.06147707,177.01,176.96,14.2885829]
[1747899304500,19.77289417,177.01,176.97,14.2885829]
[1747899306120,19.77289417,177.01,176.96,14.2885829]
[1747899307121,19.7762459,176.98,176.87,1.5599]
[1747899307308,14.2885829,176.97,176.92,14.2885829]
[1747899307816,19.7762459,176.98,176.94,14.2885829]
[1747899309411,14.12588993,176.98,176.94,14.2885829]
[1747899309605,5.65003672,176.99,176.97,14.2885829]
[1747899310328,5.65003672,176.99,176.98,14.2885829]
[1747899310922,5.65003672,176.99,176.97,14.2885829]
[1747899311500,28.41273309,177.01,176.89,24.44493195]
[1747899311709,14.2885829,177.0,176.95,14.2885829]
[1747899312332,14.12415019,177.01,176.95,14.2885829]
[1747899312536,14.2885829,176.98,176.93,26.0]
[1747899312744,14.2885829,176.96,176.9,14.2885829]
[1747899312898,14.2885829,176.93,176.88,14.2885829]
[1747899313105,14.2885829,176.92,176.88,26.0]
[1747899313319,14.2885829,176.93,176.88,26.0]
[1747899313637,19.78295274,176.92,176.88,26.0]
[1747899313832,19.78295274,176.92,176.87,14.2885829]
[1747899314011,34.07153564,176.92,176.88,26.0]
[1747899314513,19.78295274,176.92,176.88,26.0]
[1747899315924,19.78295274,176.92,176.88,14.2885829]
[1747899316129,5.65227221,176.92,176.89,14.2885829]
[1747899316505,5.65227221,176.92,176.87,26.0]
[1747899316713,5.65227221,176.92,176.89,14.2885829]
[1747899316935,5.65227221,176.92,176.9,14.2885829]
[1747899317731,5.65163332,176.94,176.9,14.2885829]
[1747899317926,19.78071662,176.94,176.9,14.2885829]
[1747899318133,19.78071662,176.94,176.91,14.2885829]
[1747899318331,19.78071662,176.94,176.9,14.2885829]
[1747899318505,19.78071662,176.94,176.89,14.2885829]
[1747899318836,14.2885829,176.91,176.8,51.78426021]
[1747899319023,14.2885829,176.91,176.85,14.2885829]
[1747899319628,14.2885829,176.9,176.84,14.2885829]
[1747899319812,14.2885829,176.88,176.83,14.2885829]
[1747899320626,14.2885829,176.88,176.81,26.0]
[1747899320833,14.2885829,176.87,176.81,40.2885829]
[1747899321037,14.2885829,176.87,176.82,14.2885829]
[1747899321623,19.78966413,176.86,176.82,14.2885829]
[1747899321907,19.78966413,176.86,176.8,14.2885829]
[1747899321908,34.07824703,176.86,176.8,14.2885829]
[1747899322136,28.26641115,176.89,176.84,14.2885829]
[1747899322137,5.65355042,176.88,176.84,14.2885829]
[1747899322341,5.65355042,176.88,176.86,14.2885829]
[1747899322636,5.65355042,176.88,176.85,14.2885829]
[1747899324046,5.65323082,176.89,176.85,14.2885829]
[1747899324629,5.65323082,176.89,176.84,14.2885829]
[1747899324939,5.65323082,176.89,176.85,14.2885829]
[1747899326021,5.65259171,176.91,176.87,14.2885829]
[1747899326327,34.07265389,176.91,176.86,14.2885829]
[1747899327118,14.2885829,176.9,176.85,40.2885829]
[1747899327326,34.07265389,176.91,176.85,40.2885829]
[1747899327530,34.07265389,176.91,176.86,14.2885829]
[1747899327938,19.78407099,176.91,176.87,14.2885829]
[1747899328144,5.65227221,176.92,176.87,14.2885829]
[1747899328741,14.2885829,176.91,176.85,40.2885829]
[1747899328944,14.2885829,176.87,176.85,26.0]
[1747899329134,14.2885829,176.87,176.81,14.2885829]
[1747899329461,14.2885829,176.88,176.82,14.2885829]
[1747899329641,48.0443138,176.92,176.84,14.2885829]
[1747899329938,48.0443138,176.92,176.85,14.2885829]
[1747899329939,14.2885829,176.91,176.85,14.2885829]
[1747899330138,34.07153564,176.92,176.87,14.2885829]
[1747899330347,19.78295274,176.92,176.88,14.2885829]
[1747899332447,14.13068053,176.92,176.88,14.2885829]
[1747899333152,5.65195274,176.93,176.89,14.2885829]
[1747899333334,5.65195274,176.93,176.9,14.2885829]
[1747899334561,5.65131393,176.95,176.92,40.2885829]
[1747899334744,5.65131393,176.95,176.94,14.2885829]
[1747899335127,5.65131393,176.95,176.92,14.2885829]
[1747899335426,5.65131393,176.95,176.91,40.2885829]
[1747899335628,19.77959875,176.95,176.91,40.2885829]
[1747899336445,19.77959875,176.95,176.92,14.2885829]
[1747899336649,14.2885829,176.97,176.92,14.2885829]
[1747899336999,14.2885829,176.98,176.92,14.2885829]
[1747899337332,14.2885829,176.97,176.92,14.2885829]
[1747899338160,14.2885829,176.94,176.84,1.662]
[1747899338340,14.2885829,176.92,176.87,14.2885829]
[1747899338544,19.78295274,176.92,176.87,14.2885829]
[1747899338746,19.78295274,176.92,176.88,14.2885829]
[1747899338947,34.07153564,176.92,176.87,40.2885829]
[1747899339261,19.78295274,176.92,176.87,40.2885829]
[1747899340156,33.57153564,176.92,176.87,40.2885829]
[1747899340936,14.2885829,176.89,176.82,39.48]
[1747899341143,47.5443138,176.92,176.79,1.6216]
[1747899341144,14.2885829,176.88,176.83,14.2885829]
[1747899341652,14.2885829,176.89,176.83,14.2885829]
[1747899341840,14.2885829,176.9,176.84,14.2885829]
[1747899342044,14.2885829,176.91,176.86,14.2885829]
[1747899342249,19.28295274,176.92,176.87,14.2885829]
[1747899342250,33.57153564,176.92,176.87,14.2885829]
[1747899342569,33.57153564,176.92,176.88,14.2885829]
[1747899342570,19.28295274,176.92,176.88,14.2885829]
[1747899342859,5.65195274,176.93,176.89,14.2885829]
[1747899343754,19.78183461,176.93,176.88,14.2885829]
[1747899343961,19.78183461,176.93,176.86,26.0]
[1747899343962,14.2885829,176.92,176.87,14.2885829]
[1747899344258,5.65195274,176.93,176.91,14.2885829]
[1747899344649,5.65195274,176.93,176.86,27.5491]
[1747899344650,5.65195274,176.93,176.86,33.20325349]
[1747899344857,14.12988187,176.93,176.87,26.0]
[1747899345340,14.12988187,176.93,176.88,14.2885829]
[1747899345845,14.12988187,176.93,176.86,1.5491]
[1747899346163,14.12988187,176.93,176.85,26.0]
[1747899346164,14.12988187,176.93,176.88,14.2885829]
[1747899346951,14.2885829,176.93,176.85,26.0]
[1747899347145,19.778481,176.96,176.89,14.2885829]
[1747899347356,19.778481,176.96,176.9,14.2885829]
[1747899347357,34.0670639,176.96,176.9,14.2885829]
[1747899350141,14.2885829,176.92,176.85,26.0]
[1747899350360,19.78407099,176.91,176.87,14.2885829]
[1747899350673,19.78407099,176.91,176.88,14.2885829]
[1747899352569,5.65259171,176.91,176.88,14.2885829]
[1747899353878,19.78183461,176.93,176.88,14.2885829]
[1747899354370,19.78183461,176.93,176.9,14.2885829]
[1747899355759,19.78183461,176.93,176.89,14.2885829]
[1747899355969,14.12988187,176.93,176.89,14.2885829]
[1747899356461,14.12988187,176.93,176.85,31.65449273]
[1747899356462,14.12988187,176.93,176.9,14.2885829]
[1747899357864,19.77959875,176.95,176.91,14.2885829]
[1747899358171,5.65131393,176.95,176.92,14.2885829]
[1747899359669,28.41502152,176.98,176.92,14.2885829]
[1747899359670,5.65067525,176.97,176.92,14.2885829]
[1747899359968,19.77736338,176.97,176.92,14.2885829]
[1747899360275,19.77736338,176.97,176.93,14.2885829]
[1747899361345,14.12668813,176.97,176.93,14.2885829]
[1747899364857,14.12668813,176.97,176.94,14.2885829]
[1747899365057,14.12668813,176.97,176.89,31.65311176]
[1747899365245,14.12668813,176.97,176.94,14.2885829]
[1747899367249,14.12668813,176.97,176.92,14.2885829]
[1747899367576,14.12668813,176.97,176.94,14.2885829]
[1747899367955,5.65035597,176.98,176.95,14.2885829]
[1747899368172,5.65035597,176.98,176.96,14.2885829]
[1747899368467,19.77464702,177.0,176.96,14.2885829]
[1747899369579,19.77464702,177.0,176.97,14.2885829]
[1747899370278,34.05982676,177.03,176.98,14.2885829]
[1747899371381,19.77124386,177.03,176.98,14.2885829]
[1747899371555,34.05982676,177.03,176.98,14.2885829]
[1747899372171,34.05982676,177.03,176.93,26.0]
[1747899372172,34.05982676,177.03,176.97,14.2885829]
[1747899373278,14.2885829,177.02,176.97,14.2885829]
[1747899373474,14.2885829,177.01,176.95,14.2885829]
[1747899373684,14.2885829,176.99,176.94,14.2885829]
[1747899373868,14.2885829,176.98,176.92,53.7285829]
[1747899374068,14.2885829,176.97,176.92,14.2885829]
[1747899374983,19.778481,176.96,176.92,14.2885829]
[1747899375861,19.778481,176.96,176.93,14.2885829]
[1747899376885,14.12748643,176.96,176.93,14.2885829]
[1747899377781,14.12748643,176.96,176.91,26.0]
[1747899377978,14.12748643,176.96,176.92,14.2885829]
[1747899378383,14.12748643,176.96,176.81,1.6271]
[1747899378585,14.12748643,176.96,176.81,41.1010328]
[1747899378586,14.2885829,176.91,176.81,41.1010328]
[1747899378784,14.2885829,176.9,176.85,14.2885829]
[1747899379083,19.78630787,176.89,176.85,14.2885829]
[1747899379667,5.65323082,176.89,176.87,14.2885829]
[1747899379881,5.65323082,176.89,176.84,26.0]
[1747899380095,5.65323082,176.89,176.86,14.2885829]
[1747899380884,14.13307705,176.89,176.86,14.2885829]
[1747899381078,5.65291124,176.9,176.87,14.2885829]
[1747899381279,5.65291124,176.9,176.88,14.2885829]
[1747899381480,5.65291124,176.9,176.84,26.0]
[1747899382017,5.65291124,176.9,176.87,14.2885829]
[1747899382174,19.78518936,176.9,176.81,41.0671]
[1747899382500,34.07377226,176.9,176.85,14.2885829]
[1747899382797,34.07377226,176.9,176.82,26.0]
[1747899383091,28.42086102,176.9,176.84,14.2885829]
[1747899383287,28.42086102,176.9,176.81,41.0671]
[1747899383461,28.42086102,176.9,176.85,14.2885829]
[1747899383879,14.13227812,176.9,176.85,14.2885829]
[1747899384079,28.42086102,176.9,176.85,14.2885829]
[1747899384367,28.42086102,176.9,176.81,41.0671]